Cogmind - Beta 14 @@@ ROGUE MODE // 2024.11.28 @ 01:22:42 Player: akira Result: Destroyed by D-53 Grenadier with Mini Grenade Launcher Performance ------------- Evolutions (0) 0 Regions Visited (2) 400 Robots Destroyed (20) 100 Value Destroyed (454) 454 Prototype IDs (0) 0 Alien Tech Used (0) 0 Bonus (0) 0 TOTAL SCORE: 954 Bonus ------- None Cogmind --------- Core Integrity 0/250 Matter 295/300 Energy 86/100 System Corruption 0% Temperature Cool (0) Movement Rolling (130) Ox2 Location -10/Mines Parts ------- > --- POWER (1) -------- (None) > --- PROPULSION (2) --- Compact Wheel > --- UTILITY (2) ------ High-capacity Storage Unit Seismic Detector > --- WEAPON (2) ------- (None) > --- INVENTORY (20) --- Ion Engine Aluminum Leg Aluminum Leg Wheel Compact Wheel Compact Wheel Compact Wheel Small Matter Pod (50) Visual Processing Unit Sensor Array Sensor Array Signal Interpreter Transport Network Coupler Propulsion Shielding EM Pulse Gun Light Cannon Light Cannon Light Cannon Peak State ------------ > --- POWER ------------ Ion Engine > --- PROPULSION ------- Light Treads Light Treads > --- UTILITY ---------- High-capacity Storage Unit Sensor Array > --- WEAPON ----------- Particle Gun Assault Rifle > --- INVENTORY -------- Ion Engine Aluminum Leg Aluminum Leg Wheel Compact Wheel Compact Wheel Compact Wheel Compact Wheel Small Matter Pod Visual Processing Unit Sensor Array Signal Interpreter Seismic Detector Transport Network Coupler Propulsion Shielding EM Pulse Gun Light Cannon Light Cannon Light Cannon [Rating: 10] Favorites ----------- Power Ion Engine Engine Ion Engine Propulsion Light Treads Treads Light Treads Wheel Wheel Utility Sensor Array Device Sensor Array Storage High-capacity Storage Unit Weapon Assault Rifle Energy Gun Particle Gun Ballistic Gun Assault Rifle Build | -11 -10 -10 ------- Run | Yrd Mat Min Slots Evolved . | . . . Power . | . . . Propulsion . | . . . Utility . | . . . Weapon . | . . . Parts Attached 13 | 7 4 2 Power 1 | 1 . . Engine 1 | 1 . . Core . | . . . Reactor . | . . . Propulsion 5 | 3 1 1 Treads 3 | 2 1 . Leg . | . . . Wheel 2 | 1 . 1 Hover . | . . . Flight . | . . . Utility 4 | 1 2 1 Device 2 | . 1 1 Storage 2 | 1 1 . Processor . | . . . Hackware . | . . . Protection . | . . . Artifact . | . . . Weapon 3 | 2 1 . Energy Gun 2 | 1 1 . Energy Cannon . | . . . Ballistic Gun 1 | 1 . . Ballistic Cannon . | . . . Launcher . | . . . Special Weapon . | . . . Impact Weapon . | . . . Slashing Weapon . | . . . Piercing Weapon . | . . . Special Melee Weapon . | . . . Unidentified Prototypes . | . . . Parts Lost 5 | . . 5 Power 1 | . . 1 Propulsion 2 | . . 2 Utility . | . . . Weapon 2 | . . 2 Highest Loss Streak 5 | . . 5 To Critical Strikes . | . . . Average Slot Usage (%) 98 | . 99 98 Engine 13 | . 14 13 Treads 27 | . 28 27 Device 13 | . 13 14 Storage 14 | . 14 14 Energy Gun 13 | . 14 13 Ballistic Gun 13 | . 14 13 Peak Build Rating 10 | 6 10 10 Average Rating 8 | 4 8 9 On Entrance 5 | . 6 10 Naked Turns . | . . . Heaviest Build 51 | 14 51 51 Greatest Support 40 | 40 40 40 Greatest Overweight (x) 2 | 1 1 2 Average Overweight (x) . | . . 1 Largest Inventory Capacity 20 | 8 20 20 Average Capacity 16 | 7 16 20 Most Carried 19 | 7 19 19 Average Carried 11 | 5 11 18 Final Capacity 20 | 8 20 20 Final Carried 19 | 7 19 18 Class Distribution -------------------- 100% | Mutant Dominant Class ---------------- Mutant | -10/Materials Mutant | -10/Mines Resources | -11 -10 -10 ----------- Run | Yrd Mat Min Matter Collected 504 | 207 279 18 Remotely . | . . . Salvage Created 598 | 30 550 18 Parts 45 | 4 41 . Haulers Intercepted 1 | . 1 . Recyclers Shooed . | . . . Parts Field Recycled . | . . . Retrieved Matter . | . . . Parts Self-Destructed . | . . . Prevented . | . . . Kills | -11 -10 -10 ------- Run | Yrd Mat Min Combat Hostiles Destroyed 15 | . 14 1 Guns 15 | . 14 1 Classes Destroyed 8 | 1 6 1 Builder 1 | . 1 . Tunneler 1 | 1 . . Hauler 1 | . 1 . Operator 1 | . 1 . Watcher 2 | . 2 . Swarmer 5 | . 5 . Grunt 9 | . 9 . Assembled 1 | . . 1 Best Kill Streak 4 | 1 4 1 Combat Bots Only 4 | . 4 1 Max Kills in Single Turn 1 | 1 1 1 Gunslinging . | . . . Exploded . | . . . Melee . | . . . Uniques/NPCs Destroyed . | . . . Combat | -11 -10 -10 -------- Run | Yrd Mat Min Hostile Shots Fired 72 | . 53 19 Missed 17 | . 15 2 Damage Taken 962 | . 396 566 Core 280 | . 53 227 Absorbed by Shields . | . . . Core Remaining (%) 100 | 100 . . Volleys Fired 45 | 1 41 3 Largest 2 | 2 2 2 Hottest 85 | 60 85 85 Shots Fired 90 | 2 82 6 Gun 90 | 2 82 6 Cannon . | . . . Launcher . | . . . Special . | . . . Kinetic 45 | 1 41 3 Thermal 34 | . 31 3 Explosive . | . . . Electromagnetic 11 | 1 10 . Robot Hit Streak 10 | 1 10 3 Robot Miss Streak 4 | . 4 1 Penetration Max . | . . . Secondary Targets 2 | . 2 . Max Gunslinging Chain 1 | . 1 . Shots Hit Robots 56 | 1 51 4 Core Hits 30 | 1 27 2 Critical Kills . | . . . Critical Parts Destroyed . | . . . Critical Strikes . | . . . Melee Attacks . | . . . Impact . | . . . Slashing . | . . . Piercing . | . . . Sneak Attacks . | . . . Combat Hostiles . | . . . Follow-up Attacks . | . . . Damage Inflicted 797 | 12 732 53 Guns 787 | 12 722 53 Cannons . | . . . Explosions . | . . . Melee . | . . . Ramming 10 | . 10 . Kinetic 306 | . 267 39 Thermal 337 | . 323 14 Explosive . | . . . Electromagnetic 144 | 12 132 . Impact . | . . . Slashing . | . . . Piercing . | . . . Highest Corruption . | . . . Average Corruption . | . . . Corruption Purged . | . . . Corruption Blocked . | . . . Overload Shots . | . . . Overflow Damage . | . . . Projectiles . | . . . Explosions . | . . . Melee . | . . . Knockbacks . | . . . Impact . | . . . Kinetic . | . . . Secondary . | . . . Self-Inflicted Damage . | . . . Shots . | . . . Rammed 2 | . 2 . Targets Rammed 2 | . 2 . Kicked . | . . . Crushed . | . . . Highest Temperature 213 | . 213 72 Average Temperature 56 | . 58 38 Received Heat Transfer 165 | . 138 27 Siege Activations . | . . . Robots Corrupted . | . . . Combat Hostiles . | . . . Parts Fried 1 | . 1 . Impact Corruptions . | . . . Robots Melted . | . . . Combat Hostiles . | . . . Parts Melted 1 | . 1 . Heat Transferred 814 | . 777 37 Parts Sabotaged . | . . . Parts Stolen . | . . . Parts Stripped . | . . . Power Chain Reactions . | . . . Alert | -11 -10 -10 ------- Run | Yrd Mat Min Peak Influence 181 | 5 181 8 Initial 8 | . 3 8 Average 87 | 1 103 7 Maximum Alert Level . | . . . Low Security (%) 100 | 100 100 100 Level 1 . | . . . Level 2 . | . . . Level 3 . | . . . Level 4 . | . . . Level 5 . | . . . High Security . | . . . Max Security . | . . . Squads Dispatched 2 | . 2 . Investigation 1 | . 1 . Extermination . | . . . Reinforcement 1 | . 1 . Assault . | . . . Garrison . | . . . Intercept . | . . . Searches Triggered . | . . . Construction Impeded . | . . . Haulers Reinforced . | . . . Active Scanning Responses . | . . . Cargo Convoy Interrupts . | . . . Stealth | -11 -10 -10 --------- Run | Yrd Mat Min Distress Signals 3 | . 3 . Communications Jammed . | . . . Distress Signals . | . . . Times Spotted 27 | . 22 5 Peak Tracking Total 7 | . 7 4 Tactical Retreats 3 | . 3 . Traps | -11 -10 -10 ------- Run | Yrd Mat Min Traps Triggered 1 | . 1 . Indirectly . | . . . Trap Hack Attempts . | . . . Triggered . | . . . Disarmed . | . . . Reprogrammed . | . . . Reused . | . . . Traps Extracted . | . . . Installed . | . . . Triggered . | . . . Machines | -11 -10 -10 ---------- Run | Yrd Mat Min Machines Disabled 1 | . 1 . Max in Single Turn 1 | . 1 . Machines Repaired . | . . . Machines Dismantled . | . . . Machines Sabotaged . | . . . Overloaded Fab Kills . | . . . Hacking | -11 -10 -10 --------- Run | Yrd Mat Min Machines Accessed 6 | . 6 . Terminals 5 | . 5 . Fabricators . | . . . Repair Stations . | . . . Recycling Units 1 | . 1 . Scanalyzers . | . . . Garrison Access . | . . . Total Hacks 14 | . 14 . Successful 8 | . 8 . Failed 6 | . 6 . Catastrophic . | . . . Database Lockouts . | . . . Manual 10 | . 10 . Terminals 11 | . 11 . Fabricators . | . . . Repair Stations . | . . . Recycling Units 3 | . 3 . Scanalyzers . | . . . Garrison Access . | . . . Terminal Hacks 3 | . 3 . Robot Schematic 1 | . 1 . Hauler Manifests 1 | . 1 . Registered Prototypes 1 | . 1 . Fabricator Hacks . | . . . Repair Station Hacks . | . . . Recycling Unit Hacks . | . . . Scanalyzer . | . . . Garrison Access Hacks . | . . . Unauthorized Hacks 5 | . 5 . Terminals 5 | . 5 . Botnet 5 | . 5 . Fabricators . | . . . Repair Stations . | . . . Recycling Units . | . . . Scanalyzers . | . . . Garrison Access . | . . . Data Cores Recovered . | . . . Used . | . . . Hacking Detections 3 | . 3 . Full Trace Events 1 | . 1 . Feedback Events . | . . . Feedback Blocked . | . . . Robot Schematics Acquired 1 | . 1 . Robots Built . | . . . Authchips . | . . . Time . | . . . Total Robot Build Rating . | . . . Part Schematics Acquired . | . . . Parts Built . | . . . Authchips . | . . . Time . | . . . Total Part Build Rating . | . . . Parts Repaired . | . . . Time . | . . . Parts Recycled . | . . . Recycled Matter . | . . . Retrieved Matter . | . . . Retrieved Components . | . . . Parts Scanalyzed . | . . . Part Schematics Acquired . | . . . Parts Damaged . | . . . Bothacking | -11 -10 -10 ------------ Run | Yrd Mat Min Used RIF Installer . | . . . Robots Hacked . | . . . Non-combat . | . . . Combat . | . . . Robot Hacks Applied . | . . . Relay Couplers Released . | . . . Fabnet Peak Effective % . | . . . Robots Rewired . | . . . Allies Hacked . | . . . Hacks Repelled . | . . . Allies | -11 -10 -10 -------- Run | Yrd Mat Min Total Allies . | . . . Largest Group . | . . . Highest-Rated Group . | . . . Highest-Rated Ally . | . . . Total Orders . | . . . Ally Attacks . | . . . Total Damage . | . . . Kills . | . . . Allies Corrupted . | . . . Allies Melted . | . . . Intel | -11 -10 -10 ------- Run | Yrd Mat Min Robot Analysis Total . | . . . Derelict Logs Recovered 1 | . . 1 Drone Launches . | . . . Drone Recoveries . | . . . Exploration | -11 -10 -10 ------------- Run | Yrd Mat Min Turns Passed 2150 | 137 1798 215 Spaces Moved 888 | 74 728 86 Core 3 | 3 . . Treads 874 | 62 728 84 Legs . | . . . Wheels 11 | 9 . 2 Hover . | . . . Flight . | . . . Fastest Speed 50 | 50 160 130 Average Speed 209 | 147 212 237 Slowest Speed 240 | 160 240 240 Overloaded Moves . | . . . Propulsion Burnouts . | . . . Robots Hopped . | . . . Cave-ins Triggered . | . . . Exploration Rate (%) 32 | 5 62 30 Regions Visited 2 Branch Regions 1 Pre-discovered Areas . | . . . Known Exits Taken . | . . . Unknown Exits Taken 2 | 1 1 . Scrap Searched . | . . . Spaces Dug . | . . . Terrain Destroyed . | . . . Melee . | . . . Projectile . | . . . AOE . | . . . Terrain Rammed . | . . . Walls Destroyed . | . . . Machines Disabled . | . . . Actions | -11 -10 -10 --------- Run | Yrd Mat Min Total 1084 | 97 896 91 Wait 115 | 8 107 . Move 886 | 73 727 86 Hop . | . . . Pick Up 20 | 8 12 . Fast Attach 7 | 5 2 . Attach 2 | 1 . 1 Detach . | . . . Swap 4 | 1 2 1 Drop 3 | . 3 . Fire 45 | 1 41 3 Melee . | . . . Ram . | . . . Kick . | . . . Crush 2 | . 2 . Escape Stasis . | . . . Rewire . | . . . Trap . | . . . Miscellaneous . | . . . Route ------- -11/Scrapyard -10/Materials (discovered 2 exits: [*Mat] / [*Min]) -10/Mines (discovered 3 exits: [*Mat x2] / Sub) History --------- Turn | Location | Event 4 | -11/Scrapyard | Discovered new exit (range 15) 138 | -11/Scrapyard | Entered Materials 316 | -10/Materials | Build established: Mutant 1091 | -10/Materials | Discovered new exit (range 3) 1361 | -10/Materials | Discovered new exit (range 9) 1936 | -10/Materials | Entered Mines 1952 | -10/Mines | Identified exit to Subcaves 1974 | -10/Mines | Discovered new exit (range 16) 2080 | -10/Mines | Discovered new exit (range 4) 2097 | -10/Mines | Assembled infested the area 2144 | -10/Mines | Core integrity fell below 50% 2149 | -10/Mines | Core integrity fell below 20% 2151 | -10/Mines | Destroyed by D-53 Grenadier with Mini Grenade Launcher Last Messages --------------- 02119_ as-89493 sneak attacks. 02119_ K-01 Serf destroyed. 02136_ as-89493 destroyed. 02139_ Acquired 18 matter. 02140_ C-30 ARC bursts open, deploying its payload. 02140_ D-53 Grenadier unfolds itself. 02140_ Assault Rifle destroyed. 02140_ R-06 Scavenger destroyed. 02142_ K-01 Serf collects debris. 02143_ Particle Gun destroyed. 02143_ K-01 Serf collects debris. 02144_ The unstable cave ceiling collapses. 02145_ Ion Engine destroyed. 02145_ K-01 Serf collects debris. 02147_ Lgt. Treads destroyed. 02149_ K-01 Serf collects debris. 02150_ The unstable cave ceiling collapses. 02150_ K-01 Serf collects debris. 02151_ The unstable cave ceiling collapses. 02151_ Lgt. Treads destroyed. Map ----- +----------------------------------------------------+ | ??????????????# ##?? | | ??????????????# #?? | | ??????????????## #### #### #?? | | ???????????????# ###??# #??# ## #?? | | ???????????????## ##????# #??# ### #?? | | ????????????????##??????# #??# #?###?? | | ????????????????????????# #??# #?????? | | ????????????????????????# #??# #?????? | | ????????????????????????# #??# #?????? | | ????????????????????????# #??# #?????? | | ???????????????????#?#### ##?# #?????? | | ??????????????????" ## ### #?????? | | ??????????????????? # ## #?????? | | ???????????????????? / u< #?????? | | ?????????????????????/Y #?????? | | ?????????????????????#Y #####?????? | | ????????????????????## k #?????????? | | ?????????????# ##### kd#####??????? | | ?????????????# d* ##?????? | | ?????????????# =%= #?????? | | ?????????????########### ! # #?????? | | ??????????????????????## ##????? | | ?????????????????????## ##???? | | ?????????????????????# #???? | | ?????????????????###### #???? | | ?????????????# %! @ ###???? | | ????????????# #?????? | | ????????????# a####### ##?????? | | ??????????????????????# ##??????? | | ??????????????????????### ##???????? | | ????????????????????????######????????? | | ??????????????????????????????????????? | | ??????????????????????????????????????? | | ??????????????????????????????????????? | | ??????????????????????????????????????? | | ??????????????????????????????????????? | | ??????????????????????????????????????? | | ??????????????????????????????????????? | | ??????????????????????????????????????? | | ?????>????????????????????????????????? | | ??????????????????????????????????????? | | ??????????????????????????????????????? | | ??????????????????????????????????????? | | ??????????????????????????????????????? | | ??????????????????????????????????????? | | ??????????????????????????????????????? | | ??????????????????????????????????????? | | | | | | | +----------------------------------------------------+ Best States ------------- Heat Dissipation 25 Energy Generation 10 Energy Capacity 250 Matter Stores 300 Matter Capacity 300 Sight Range 16 Robot Scan Range 14 Terrain Scan Density 10 Evasion (%) 40 Recoil Reduction 2 Item Schematics ----------------- None Robot Schematics ------------------ M-13 Machinist | -10/Materials | Hacked Fabricated ------------ Nothing Alien Tech Used ----------------- None Achievements -------------- None Challenges ------------ None Game ------ Seed EncryptedTachyonRipper Manual? 0 Play Time 00:11:34 Cumulative 59.2 hours Start 2024.11.28 @ 01:12:03 End 2024.11.28 @ 01:22:42 Sessions 1 Manual Loads 0 Difficulty Rogue Special Mode None Game No. 64 Rogue 64 Adventurer 0 Explorer 0 Win Type - Total 0 Types 0/0/0/0/0/0/0/0/0 Lore% 10 Gallery% 30 Achievement% 30 Wizard Run 0 Options --------- Layout 2 ASCII 0 Keyboard 0 Movement Mouse Keybinds 0 Fullscreen 2 Font 16/SmallcapsGlow Map View 55x47 Zoom Use 15% Tactical HUD 1 Map Filters NONE Filters NONE Steam 1 RUN: 882268f5-b7e5-4c43-83be-b22a2130d4f0